[Event "*** Titled Tuesday Blitz"]
[Site "Chess.com"]
[Date "2019.02.05"]
[Round "4"]
[White "IakovUlivar"]
[Black "Ekko_li"]
[Result "1-0"]
[WhiteElo "2518"]
[BlackElo "2493"]
[TimeControl "180+2"]
[EndTime "13:51:27 PST"]
[Termination "IakovUlivar won by resignation"]

1. e4 {[%clk 0:03:01.9]} 1... d6 {[%clk 0:03:00.1]} 2. d4 {[%clk 0:03:00.9]}
2... Nf6 {[%clk 0:03:01.2]} 3. Nc3 {[%clk 0:03:02.4]} 3... g6 {[%clk 0:03:02.1]}
4. Nf3 {[%clk 0:03:00.5]} 4... Bg7 {[%clk 0:03:02.4]} 5. Be2 {[%clk 0:03:00.2]}
5... O-O {[%clk 0:03:02.2]} 6. O-O {[%clk 0:03:01.1]} 6... Bg4 {[%clk
0:03:02.3]} 7. Be3 {[%clk 0:02:58.5]} 7... Nc6 {[%clk 0:03:00.9]} 8. h3 {[%clk
0:02:42.3]} 8... Bxf3 {[%clk 0:02:59.5]} 9. Bxf3 {[%clk 0:02:44.2]} 9... e5
{[%clk 0:03:00.6]} 10. dxe5 {[%clk 0:02:25.9]} 10... dxe5 {[%clk 0:03:00.3]} 11.
Ne2 {[%clk 0:02:11.6]} 11... Qe7 {[%clk 0:02:51.6]} 12. c3 {[%clk 0:02:11.3]}
12... Qe6 {[%clk 0:02:47.5]} 13. Qb3 {[%clk 0:02:06.3]} 13... Na5 {[%clk
0:02:41]} 14. Qxe6 {[%clk 0:02:05.5]} 14... fxe6 {[%clk 0:02:41.4]} 15. Rad1
{[%clk 0:02:04.1]} 15... Rfd8 {[%clk 0:02:41]} 16. Ng3 {[%clk 0:01:56.4]} 16...
b6 {[%clk 0:02:30.6]} 17. Rxd8+ {[%clk 0:01:52.1]} 17... Rxd8 {[%clk 0:02:30.7]}
18. Rd1 {[%clk 0:01:54]} 18... Rxd1+ {[%clk 0:02:30.9]} 19. Bxd1 {[%clk
0:01:55.9]} 19... Nc4 {[%clk 0:02:30]} 20. Bc1 {[%clk 0:01:56.5]} 20... Bf8
{[%clk 0:02:30.2]} 21. Be2 {[%clk 0:01:50.1]} 21... Nd6 {[%clk 0:02:29.1]} 22.
Bd3 {[%clk 0:01:46]} 22... Nb7 {[%clk 0:02:27.9]} 23. Kf1 {[%clk 0:01:42.6]}
23... Kf7 {[%clk 0:02:25.8]} 24. f3 {[%clk 0:01:39.6]} 24... Nc5 {[%clk
0:02:17.6]} 25. Bc2 {[%clk 0:01:39.9]} 25... h5 {[%clk 0:02:14.3]} 26. h4 {[%clk
0:01:37.5]} 26... Be7 {[%clk 0:02:10.8]} 27. Nh1 {[%clk 0:01:38.4]} 27... Nfd7
{[%clk 0:02:09.3]} 28. g3 {[%clk 0:01:38.7]} 28... Nb7 {[%clk 0:02:03.6]} 29.
Nf2 {[%clk 0:01:36.8]} 29... a5 {[%clk 0:02:01.5]} 30. Ba4 {[%clk 0:01:30.5]}
30... Nbc5 {[%clk 0:01:59.8]} 31. Bb5 {[%clk 0:01:24.7]} 31... Nb8 {[%clk
0:01:51.5]} 32. Nh3 {[%clk 0:01:23.4]} 32... Bf6 {[%clk 0:01:47.5]} 33. b3
{[%clk 0:01:00.1]} 33... Ke7 {[%clk 0:01:40.1]} 34. Be3 {[%clk 0:00:53.1]} 34...
Nb7 {[%clk 0:01:35.5]} 35. Nf2 {[%clk 0:00:49.6]} 35... Nd6 {[%clk 0:01:30.9]}
36. Bd3 {[%clk 0:00:48.8]} 36... Nd7 {[%clk 0:01:26.9]} 37. Ke2 {[%clk 0:00:50]}
37... Kf7 {[%clk 0:01:26.4]} 38. Nh3 {[%clk 0:00:33.5]} 38... Ke7 {[%clk
0:01:25.7]} 39. Ng5 {[%clk 0:00:33.7]} 39... Bg7 {[%clk 0:01:25.3]} 40. Kd2
{[%clk 0:00:29]} 40... Bh6 {[%clk 0:01:24.9]} 41. a4 {[%clk 0:00:20.9]} 41...
Nb7 {[%clk 0:01:21]} 42. b4 {[%clk 0:00:18.1]} 42... Nd6 {[%clk 0:01:13.3]} 43.
Be2 {[%clk 0:00:16.7]} 43... Nb8 {[%clk 0:01:03.6]} 44. bxa5 {[%clk 0:00:13.2]}
44... bxa5 {[%clk 0:01:04]} 45. Kc2 {[%clk 0:00:13]} 45... Nd7 {[%clk
0:01:04.8]} 46. Kb3 {[%clk 0:00:13.5]} 46... Nb6 {[%clk 0:01:05.9]} 47. c4
{[%clk 0:00:07.5]} 47... Nbc8 {[%clk 0:00:51.1]} 48. c5 {[%clk 0:00:08.4]} 48...
Nb7 {[%clk 0:00:51.7]} 49. Ba6 {[%clk 0:00:06.5]} 49... Nxc5+ {[%clk 0:00:42.2]}
50. Bxc5+ {[%clk 0:00:06.6]} 50... Nd6 {[%clk 0:00:44.1]} 51. Bd3 {[%clk
0:00:05.9]} 51... Kd7 {[%clk 0:00:44.2]} 52. Kc3 {[%clk 0:00:06.3]} 52... Kc6
{[%clk 0:00:45.1]} 53. Ba3 {[%clk 0:00:07.1]} 53... Bf8 {[%clk 0:00:44.2]} 54.
Kc2 {[%clk 0:00:06.1]} 54... Bg7 {[%clk 0:00:44.5]} 55. Bb2 {[%clk 0:00:06.6]}
55... Kd7 {[%clk 0:00:44.4]} 56. Bc3 {[%clk 0:00:07.8]} 56... c6 {[%clk
0:00:44.5]} 57. Bxa5 {[%clk 0:00:08.2]} 57... c5 {[%clk 0:00:46.2]} 58. Kb3
{[%clk 0:00:07.4]} 58... Nb7 {[%clk 0:00:46.1]} 59. Bb5+ {[%clk 0:00:07.3]}
59... Kd6 {[%clk 0:00:47.3]} 60. Bc3 {[%clk 0:00:09.2]} 60... Nd8 {[%clk
0:00:47.3]} 61. Kc4 {[%clk 0:00:10.1]} 61... Bf6 {[%clk 0:00:48.3]} 62. f4
{[%clk 0:00:09.5]} 62... exf4 {[%clk 0:00:48.1]} 63. Bxf6 {[%clk 0:00:10.5]}
63... fxg3 {[%clk 0:00:50]} 64. e5+ {[%clk 0:00:09.6]} 1-0

[Event "*** Titled Tuesday Blitz"]
[Site "Chess.com"]
[Date "2019.02.05"]
[Round "4"]
[White "MartinMatthiesen"]
[Black "Peng_Li-Min"]
[Result "1/2-1/2"]
[WhiteElo "2499"]
[BlackElo "2676"]
[TimeControl "180+2"]
[EndTime "13:51:29 PST"]
[Termination "Game drawn by repetition"]

1. d4 {[%clk 0:03:01.9]} 1... Nf6 {[%clk 0:03:00.7]} 2. c4 {[%clk 0:03:01]} 2...
g6 {[%clk 0:03:01.8]} 3. Nc3 {[%clk 0:03:01.1]} 3... d5 {[%clk 0:03:03]} 4. cxd5
{[%clk 0:02:55.9]} 4... Nxd5 {[%clk 0:03:04.9]} 5. e4 {[%clk 0:02:56.6]} 5...
Nxc3 {[%clk 0:03:06.3]} 6. bxc3 {[%clk 0:02:58.5]} 6... Bg7 {[%clk 0:03:07]} 7.
Bc4 {[%clk 0:02:59]} 7... O-O {[%clk 0:03:07.5]} 8. Ne2 {[%clk 0:02:59.7]} 8...
c5 {[%clk 0:03:08.6]} 9. O-O {[%clk 0:02:59.4]} 9... Nc6 {[%clk 0:03:10]} 10.
Be3 {[%clk 0:02:59.1]} 10... Qc7 {[%clk 0:03:11.3]} 11. Rc1 {[%clk 0:02:58.9]}
11... Rd8 {[%clk 0:03:12.8]} 12. Bf4 {[%clk 0:02:55.4]} 12... e5 {[%clk
0:03:12.8]} 13. Bg5 {[%clk 0:02:54.7]} 13... Rd6 {[%clk 0:03:12.2]} 14. Bd5
{[%clk 0:02:53.1]} 14... Be6 {[%clk 0:03:11.5]} 15. dxc5 {[%clk 0:02:48.7]}
15... Rd7 {[%clk 0:03:12.4]} 16. c4 {[%clk 0:02:48.7]} 16... Nd4 {[%clk
0:03:12.7]} 17. Nxd4 {[%clk 0:02:41]} 17... exd4 {[%clk 0:03:14.6]} 18. Qa4
{[%clk 0:02:37.4]} 18... h6 {[%clk 0:03:04.2]} 19. Bh4 {[%clk 0:02:30.8]} 19...
Be5 {[%clk 0:03:00.3]} 20. Bg3 {[%clk 0:02:11.4]} 20... Bxg3 {[%clk 0:02:58.1]}
21. hxg3 {[%clk 0:01:57.4]} 21... Re7 {[%clk 0:02:59.4]} 22. c6 {[%clk
0:01:36.5]} 22... bxc6 {[%clk 0:02:51.2]} 23. Bxc6 {[%clk 0:01:37.3]} 23... Bd7
{[%clk 0:02:46.8]} 24. Bxd7 {[%clk 0:01:35.9]} 24... Rxd7 {[%clk 0:02:44.7]} 25.
c5 {[%clk 0:01:34]} 25... Re8 {[%clk 0:02:40.7]} 26. c6 {[%clk 0:01:29.7]} 26...
Rd6 {[%clk 0:02:39.1]} 27. f3 {[%clk 0:01:29.1]} 27... Ree6 {[%clk 0:02:36.5]}
28. Rfd1 {[%clk 0:01:28.3]} 28... Rxc6 {[%clk 0:02:01]} 29. Rxc6 {[%clk
0:01:28]} 29... Rxc6 {[%clk 0:02:02.9]} 30. Kh2 {[%clk 0:01:28.6]} 30... Rc4
{[%clk 0:01:57.8]} 31. Qe8+ {[%clk 0:01:27.2]} 31... Kg7 {[%clk 0:01:58.9]} 32.
e5 {[%clk 0:01:23.6]} 32... Rc6 {[%clk 0:01:46.7]} 33. Rxd4 {[%clk 0:01:17.8]}
33... Re6 {[%clk 0:01:47.4]} 34. Qd7 {[%clk 0:01:08.6]} 34... Qxd7 {[%clk
0:01:37.8]} 35. Rxd7 {[%clk 0:01:08.4]} 35... Rxe5 {[%clk 0:01:39.7]} 36. Rxa7
{[%clk 0:01:08.4]} 36... h5 {[%clk 0:01:41.3]} 37. a4 {[%clk 0:01:06.6]} 37...
Re1 {[%clk 0:01:42.1]} 38. a5 {[%clk 0:01:06]} 38... Kf6 {[%clk 0:01:40.3]} 39.
Rb7 {[%clk 0:00:53.1]} 39... Ra1 {[%clk 0:01:41.3]} 40. Rb6+ {[%clk 0:00:52.8]}
40... Ke5 {[%clk 0:01:40.8]} 41. a6 {[%clk 0:00:52.6]} 41... Kf5 {[%clk
0:01:39.7]} 42. Rb7 {[%clk 0:00:44.4]} 42... Rxa6 {[%clk 0:01:33.1]} 43. Rxf7+
{[%clk 0:00:44.5]} 43... Ke6 {[%clk 0:01:35]} 44. Rf8 {[%clk 0:00:44.6]} 44...
Ra2 {[%clk 0:01:35.2]} 45. Kh3 {[%clk 0:00:43.7]} 45... Ke7 {[%clk 0:01:31.6]}
46. Rf4 {[%clk 0:00:43.1]} 46... Rb2 {[%clk 0:01:30.6]} 47. g4 {[%clk
0:00:30.7]} 47... hxg4+ {[%clk 0:01:31.6]} 48. fxg4 {[%clk 0:00:32.6]} 48... Rc2
{[%clk 0:01:26.4]} 49. Kh4 {[%clk 0:00:20.1]} 49... Rc5 {[%clk 0:01:25.4]} 50.
g5 {[%clk 0:00:15.9]} 50... Rc2 {[%clk 0:01:24.7]} 51. g3 {[%clk 0:00:16.3]}
51... Rh2+ {[%clk 0:01:13.2]} 52. Kg4 {[%clk 0:00:17]} 52... Rd2 {[%clk
0:01:15.1]} 53. Rf6 {[%clk 0:00:17]} 53... Rd6 {[%clk 0:01:15.4]} 54. Rxd6
{[%clk 0:00:15.3]} 54... Kxd6 {[%clk 0:01:17.3]} 55. Kf4 {[%clk 0:00:15.1]}
55... Kd5 {[%clk 0:01:15.7]} 56. Kf3 {[%clk 0:00:14.9]} 56... Ke5 {[%clk
0:01:15.7]} 57. g4 {[%clk 0:00:14.8]} 57... Kd5 {[%clk 0:01:16.4]} 58. Kf4
{[%clk 0:00:15.4]} 58... Kd4 {[%clk 0:01:17.3]} 59. Kg3 {[%clk 0:00:16.2]} 59...
Ke3 {[%clk 0:01:17.7]} 60. Kh3 {[%clk 0:00:12.5]} 60... Kf3 {[%clk 0:01:17.5]}
61. Kh4 {[%clk 0:00:12.7]} 61... Kf4 {[%clk 0:01:18.1]} 62. Kh3 {[%clk
0:00:13.7]} 62... Kf3 {[%clk 0:01:15.3]} 63. Kh4 {[%clk 0:00:14.6]} 63... Kf4
{[%clk 0:01:16.3]} 64. Kh3 {[%clk 0:00:15.8]} 64... Kxg5 {[%clk 0:01:18.2]} 65.
Kg3 {[%clk 0:00:16.9]} 65... Kf6 {[%clk 0:01:20.1]} 66. Kf4 {[%clk 0:00:17.9]}
66... Ke6 {[%clk 0:01:20.9]} 67. Ke4 {[%clk 0:00:18.8]} 67... Kf6 {[%clk
0:01:20.6]} 68. Kf4 {[%clk 0:00:20]} 68... Ke6 {[%clk 0:01:21.8]} 69. Ke4 {[%clk
0:00:21.2]} 69... g5 {[%clk 0:01:21.9]} 70. Kd4 {[%clk 0:00:21.7]} 70... Kd6
{[%clk 0:01:23.4]} 71. Ke4 {[%clk 0:00:22.8]} 71... Ke6 {[%clk 0:01:25]} 72. Kd4
{[%clk 0:00:24.2]} 72... Kd6 {[%clk 0:01:26.6]} 73. Ke4 {[%clk 0:00:25.6]} 73...
Ke6 {[%clk 0:01:28.5]} 1/2-1/2

[Event "*** Titled Tuesday Blitz"]
[Site "Chess.com"]
[Date "2019.02.05"]
[Round "4"]
[White "Ali_rastbod"]
[Black "Konavets"]
[Result "1/2-1/2"]
[WhiteElo "2647"]
[BlackElo "2832"]
[TimeControl "180+2"]
[EndTime "13:51:30 PST"]
[Termination "Game drawn by repetition"]

1. d4 {[%clk 0:03:01.9]} 1... Nf6 {[%clk 0:03:00.6]} 2. Bg5 {[%clk 0:03:03]}
2... Ne4 {[%clk 0:02:59.6]} 3. Bf4 {[%clk 0:03:03.6]} 3... d5 {[%clk 0:03:00.6]}
4. Nd2 {[%clk 0:03:01]} 4... Bf5 {[%clk 0:03:01.7]} 5. e3 {[%clk 0:03:00.8]}
5... e6 {[%clk 0:03:02.9]} 6. Nxe4 {[%clk 0:02:59]} 6... Bxe4 {[%clk 0:03:03.2]}
7. Nf3 {[%clk 0:03:00]} 7... Bd6 {[%clk 0:03:00.7]} 8. Bg3 {[%clk 0:02:59.8]}
8... O-O {[%clk 0:03:01.2]} 9. Bd3 {[%clk 0:02:59.9]} 9... Bxd3 {[%clk
0:03:02.6]} 10. Qxd3 {[%clk 0:03:01.8]} 10... c5 {[%clk 0:03:03.8]} 11. c3
{[%clk 0:03:01.4]} 11... Nc6 {[%clk 0:03:03.4]} 12. O-O {[%clk 0:02:57]} 12...
Rc8 {[%clk 0:03:03.8]} 13. dxc5 {[%clk 0:02:47.7]} 13... Bxc5 {[%clk 0:03:03.7]}
14. Rad1 {[%clk 0:02:46.8]} 14... Qb6 {[%clk 0:02:44.2]} 15. b4 {[%clk
0:02:34.2]} 15... Be7 {[%clk 0:02:44.7]} 16. a4 {[%clk 0:02:26.8]} 16... a5
{[%clk 0:02:42.6]} 17. b5 {[%clk 0:02:23.9]} 17... Na7 {[%clk 0:02:39.1]} 18.
Be5 {[%clk 0:02:01.6]} 18... Rc4 {[%clk 0:02:29.3]} 19. Bd4 {[%clk 0:01:36.5]}
19... Bc5 {[%clk 0:02:30.2]} 20. Ne5 {[%clk 0:01:33.2]} 20... Rxa4 {[%clk
0:02:12.7]} 21. Nd7 {[%clk 0:01:26.8]} 21... Bxd4 {[%clk 0:02:14]} 22. cxd4
{[%clk 0:01:16.6]} 22... Qxb5 {[%clk 0:02:13.7]} 23. Qxb5 {[%clk 0:01:14]} 23...
Nxb5 {[%clk 0:02:13.4]} 24. Nxf8 {[%clk 0:01:15.9]} 24... Kxf8 {[%clk
0:02:15.3]} 25. Ra1 {[%clk 0:01:15.3]} 25... Na3 {[%clk 0:01:02]} 26. Ra2 {[%clk
0:00:55.5]} 26... b5 {[%clk 0:01:02.2]} 27. Rfa1 {[%clk 0:00:52]} 27... b4
{[%clk 0:00:54.4]} 28. Kf1 {[%clk 0:00:52.5]} 28... Ke7 {[%clk 0:00:54.9]} 29.
Ke2 {[%clk 0:00:50.1]} 29... Kd7 {[%clk 0:00:53.9]} 30. Kd3 {[%clk 0:00:47.7]}
30... Kd6 {[%clk 0:00:32.6]} 31. f3 {[%clk 0:00:44.5]} 31... f5 {[%clk
0:00:32.7]} 32. g3 {[%clk 0:00:37.4]} 32... Kc6 {[%clk 0:00:32.8]} 33. Rc1+
{[%clk 0:00:34.4]} 33... Kb7 {[%clk 0:00:33.9]} 34. g4 {[%clk 0:00:25]} 34...
fxg4 {[%clk 0:00:33.1]} 35. fxg4 {[%clk 0:00:26.8]} 35... b3 {[%clk 0:00:34.5]}
36. Rb1 {[%clk 0:00:21.1]} 36... Nxb1 {[%clk 0:00:09.7]} 37. Rxa4 {[%clk
0:00:20.4]} 37... Kb6 {[%clk 0:00:11.1]} 38. Ra1 {[%clk 0:00:18.5]} 38... Kb5
{[%clk 0:00:12.5]} 39. Rxb1 {[%clk 0:00:19.1]} 39... Kb4 {[%clk 0:00:14.1]} 40.
Rf1 {[%clk 0:00:14.4]} 40... a4 {[%clk 0:00:13.7]} 41. Rf7 {[%clk 0:00:12.9]}
41... Ka3 {[%clk 0:00:07.7]} 42. Re7 {[%clk 0:00:10.1]} 42... Kb2 {[%clk
0:00:06.8]} 43. Rf7 {[%clk 0:00:07.6]} 43... Ka2 {[%clk 0:00:05.6]} 44. Rf1
{[%clk 0:00:06.1]} 44... Kb2 {[%clk 0:00:04.9]} 45. Rf7 {[%clk 0:00:06]} 45...
Ka2 {[%clk 0:00:05.4]} 46. Rf1 {[%clk 0:00:06.6]} 46... Kb2 {[%clk 0:00:06.7]}
47. Rf7 {[%clk 0:00:07.8]} 47... Ka2 {[%clk 0:00:02.8]} 48. Rf1 {[%clk
0:00:08.1]} 48... Kb2 {[%clk 0:00:03.1]} 49. Rf7 {[%clk 0:00:07.9]} 1/2-1/2

[Event "*** Titled Tuesday Blitz"]
[Site "Chess.com"]
[Date "2019.02.05"]
[Round "4"]
[White "Witaliss"]
[Black "AlexTriapishko"]
[Result "0-1"]
[WhiteElo "2369"]
[BlackElo "2745"]
[TimeControl "180+2"]
[EndTime "13:51:30 PST"]
[Termination "AlexTriapishko won by resignation"]

1. d4 {[%clk 0:03:01.9]} 1... d6 {[%clk 0:02:15]} 2. Nf3 {[%clk 0:03:01.5]} 2...
Nf6 {[%clk 0:02:15.4]} 3. Bf4 {[%clk 0:03:01.2]} 3... g6 {[%clk 0:02:17.3]} 4.
e3 {[%clk 0:03:01.8]} 4... Bg7 {[%clk 0:02:18.7]} 5. h3 {[%clk 0:03:03]} 5...
O-O {[%clk 0:02:19.8]} 6. c3 {[%clk 0:03:02.2]} 6... c5 {[%clk 0:02:21.1]} 7.
Nbd2 {[%clk 0:03:00.7]} 7... cxd4 {[%clk 0:02:18.6]} 8. cxd4 {[%clk 0:02:58.7]}
8... Nc6 {[%clk 0:02:20.5]} 9. Be2 {[%clk 0:02:58.5]} 9... Be6 {[%clk
0:02:15.6]} 10. O-O {[%clk 0:02:56.1]} 10... Qb6 {[%clk 0:02:16.9]} 11. b3
{[%clk 0:02:42.9]} 11... Nd5 {[%clk 0:02:15]} 12. Nc4 {[%clk 0:02:41.3]} 12...
Qd8 {[%clk 0:02:14.6]} 13. Bg5 {[%clk 0:02:37.3]} 13... h6 {[%clk 0:02:06.2]}
14. Bh4 {[%clk 0:02:37.4]} 14... g5 {[%clk 0:02:07.6]} 15. Bg3 {[%clk
0:02:37.8]} 15... Nc3 {[%clk 0:02:08.9]} 16. Qd3 {[%clk 0:02:37.3]} 16... Nxe2+
{[%clk 0:02:07.8]} 17. Qxe2 {[%clk 0:02:38.2]} 17... f5 {[%clk 0:02:05.7]} 18.
Rad1 {[%clk 0:02:29.5]} 18... Bd5 {[%clk 0:02:05.2]} 19. Bh2 {[%clk 0:02:24.6]}
19... Rc8 {[%clk 0:01:55.4]} 20. Ne1 {[%clk 0:02:06.1]} 20... f4 {[%clk
0:01:50.2]} 21. exf4 {[%clk 0:01:54.5]} 21... gxf4 {[%clk 0:01:44.6]} 22. Nf3
{[%clk 0:01:46.7]} 22... b5 {[%clk 0:01:45.2]} 23. Ncd2 {[%clk 0:01:43]} 23...
a6 {[%clk 0:01:45]} 24. Ne4 {[%clk 0:01:43.2]} 24... Kh8 {[%clk 0:01:41]} 25.
Rfe1 {[%clk 0:01:41.9]} 25... Nb4 {[%clk 0:01:38.2]} 26. Qd2 {[%clk 0:01:36.7]}
26... Nc2 {[%clk 0:01:12.2]} 27. Re2 {[%clk 0:01:33.5]} 27... Ne3 {[%clk
0:01:13.7]} 28. fxe3 {[%clk 0:01:31]} 28... Bxe4 {[%clk 0:01:15.1]} 29. Bxf4
{[%clk 0:01:25]} 29... Qd7 {[%clk 0:01:05.7]} 30. Rf1 {[%clk 0:01:20.1]} 30...
Rc2 {[%clk 0:01:04.8]} 31. Qd1 {[%clk 0:01:20.1]} 31... Rfc8 {[%clk 0:01:04.5]}
32. Rxc2 {[%clk 0:01:16.2]} 32... Rxc2 {[%clk 0:00:58.7]} 33. Rf2 {[%clk
0:01:16.9]} 33... Rxf2 {[%clk 0:00:54.2]} 34. Kxf2 {[%clk 0:01:16.8]} 34... Qc6
{[%clk 0:00:56.1]} 35. Qd2 {[%clk 0:01:09]} 35... Kh7 {[%clk 0:00:50.4]} 36. Ne1
{[%clk 0:01:03.1]} 36... d5 {[%clk 0:00:44.6]} 37. Nf3 {[%clk 0:01:02]} 37...
Bf6 {[%clk 0:00:25.8]} 38. Ne5 {[%clk 0:00:58.9]} 38... Qc8 {[%clk 0:00:23.7]}
39. Ng4 {[%clk 0:00:54.7]} 39... Bg7 {[%clk 0:00:24.5]} 40. Ne5 {[%clk
0:00:53.7]} 40... a5 {[%clk 0:00:23.3]} 41. Nd3 {[%clk 0:00:46.9]} 41... b4
{[%clk 0:00:24.6]} 42. Nc5 {[%clk 0:00:47.4]} 42... Bg6 {[%clk 0:00:24.5]} 43.
Qe2 {[%clk 0:00:44.5]} 43... e5 {[%clk 0:00:23.4]} 44. Bg3 {[%clk 0:00:35.6]}
44... exd4 {[%clk 0:00:24.3]} 45. Nd3 {[%clk 0:00:35.9]} 45... dxe3+ {[%clk
0:00:20.7]} 46. Kxe3 {[%clk 0:00:33.4]} 46... Qc3 {[%clk 0:00:17.7]} 47. Qd2
{[%clk 0:00:30.5]} 47... Qd4+ {[%clk 0:00:16.9]} 48. Ke2 {[%clk 0:00:30.7]}
48... Qe4+ {[%clk 0:00:17.7]} 49. Qe3 {[%clk 0:00:28.4]} 49... Qxg2+ {[%clk
0:00:18.9]} 50. Nf2 {[%clk 0:00:28.6]} 50... d4 {[%clk 0:00:20.2]} 51. Qf4
{[%clk 0:00:23.4]} 51... d3+ {[%clk 0:00:21.1]} 52. Ke3 {[%clk 0:00:22.8]} 52...
Qd5 {[%clk 0:00:19.3]} 53. Kd2 {[%clk 0:00:18.4]} 53... Bc3+ {[%clk 0:00:19.6]}
54. Kd1 {[%clk 0:00:19]} 54... Bh5+ {[%clk 0:00:17.9]} 55. Kc1 {[%clk
0:00:07.2]} 55... d2+ {[%clk 0:00:18.8]} 56. Kb1 {[%clk 0:00:06.7]} 56... Bg6+
{[%clk 0:00:19]} 0-1

[Event "*** Titled Tuesday Blitz"]
[Site "Chess.com"]
[Date "2019.02.05"]
[Round "4"]
[White "MITerryble"]
[Black "LyonBeast"]
[Result "1/2-1/2"]
[WhiteElo "2798"]
[BlackElo "2914"]
[TimeControl "180+2"]
[EndTime "13:51:36 PST"]
[Termination "Game drawn by agreement"]

1. d4 {[%clk 0:03:01.9]} 1... Nf6 {[%clk 0:03:00.1]} 2. Nf3 {[%clk 0:03:02.4]}
2... g6 {[%clk 0:02:57.4]} 3. Bg5 {[%clk 0:03:02.7]} 3... Bg7 {[%clk 0:02:57.7]}
4. Nbd2 {[%clk 0:03:03.6]} 4... O-O {[%clk 0:02:53.4]} 5. c3 {[%clk 0:03:04.4]}
5... d6 {[%clk 0:02:51.3]} 6. e4 {[%clk 0:03:05.1]} 6... c5 {[%clk 0:02:50.9]}
7. dxc5 {[%clk 0:03:07]} 7... dxc5 {[%clk 0:02:51.4]} 8. Bc4 {[%clk 0:03:07.9]}
8... Nc6 {[%clk 0:02:51.1]} 9. Qe2 {[%clk 0:03:08.5]} 9... Qc7 {[%clk
0:02:51.3]} 10. O-O {[%clk 0:03:05.5]} 10... Nh5 {[%clk 0:02:47.2]} 11. Qe3
{[%clk 0:03:04.1]} 11... b6 {[%clk 0:02:46.4]} 12. Bh6 {[%clk 0:03:03.8]} 12...
Bb7 {[%clk 0:02:41.2]} 13. Rad1 {[%clk 0:03:01.8]} 13... Rad8 {[%clk 0:02:40.8]}
14. Bxg7 {[%clk 0:02:56.2]} 14... Kxg7 {[%clk 0:02:42.7]} 15. Rfe1 {[%clk
0:02:56.2]} 15... Qf4 {[%clk 0:02:36.3]} 16. Qe2 {[%clk 0:02:26.8]} 16... Ne5
{[%clk 0:02:26.6]} 17. Nxe5 {[%clk 0:02:15.5]} 17... Qxe5 {[%clk 0:02:28.5]} 18.
Nf3 {[%clk 0:02:08.8]} 18... Qf6 {[%clk 0:02:20.8]} 19. Qe3 {[%clk 0:01:56.3]}
19... Qf4 {[%clk 0:02:09.4]} 20. Bd5 {[%clk 0:01:17.9]} 20... Qxe3 {[%clk
0:02:01]} 21. fxe3 {[%clk 0:01:19.8]} 21... Bc8 {[%clk 0:01:38.1]} 22. Ne5
{[%clk 0:01:20]} 22... Nf6 {[%clk 0:01:35]} 23. Nc6 {[%clk 0:01:14.4]} 23... Rd7
{[%clk 0:01:34.7]} 24. Ne5 {[%clk 0:00:50]} 24... Rc7 {[%clk 0:01:31]} 25. Rf1
{[%clk 0:00:39.1]} 25... e6 {[%clk 0:01:17.8]} 26. Bc6 {[%clk 0:00:39.6]} 26...
Ng8 {[%clk 0:01:02.6]} 27. Rd6 {[%clk 0:00:32.8]} 27... Ne7 {[%clk 0:01:01.7]}
28. Bb5 {[%clk 0:00:17.6]} 28... Bb7 {[%clk 0:01:02.1]} 29. Nd7 {[%clk
0:00:12.2]} 29... Rfc8 {[%clk 0:00:53.1]} 30. Nf6 {[%clk 0:00:11.5]} 30... Nc6
{[%clk 0:00:45.4]} 31. Bxc6 {[%clk 0:00:10.7]} 31... Bxc6 {[%clk 0:00:47.3]} 32.
e5 {[%clk 0:00:11.9]} 32... b5 {[%clk 0:00:48.1]} 33. Rfd1 {[%clk 0:00:12.4]}
33... a5 {[%clk 0:00:47]} 34. h4 {[%clk 0:00:11.7]} 34... h5 {[%clk 0:00:45.8]}
35. R1d2 {[%clk 0:00:12]} 35... b4 {[%clk 0:00:46.9]} 36. c4 {[%clk 0:00:12.8]}
36... a4 {[%clk 0:00:47.7]} 37. Kh2 {[%clk 0:00:13.7]} 37... Ra7 {[%clk
0:00:44.4]} 38. Kg3 {[%clk 0:00:14.1]} 38... Raa8 {[%clk 0:00:45.5]} 39. Kf4
{[%clk 0:00:14.5]} 39... Kf8 {[%clk 0:00:42.9]} 40. Kg5 {[%clk 0:00:13.1]} 40...
Ke7 {[%clk 0:00:42.5]} 41. g3 {[%clk 0:00:13.6]} 41... a3 {[%clk 0:00:40.5]} 42.
b3 {[%clk 0:00:14.2]} 42... Rd8 {[%clk 0:00:40.9]} 43. Rd1 {[%clk 0:00:11.5]}
43... Rac8 {[%clk 0:00:41.1]} 44. R1d2 {[%clk 0:00:11.2]} 44... Rb8 {[%clk
0:00:31.8]} 45. Kf4 {[%clk 0:00:06.5]} 45... Rbc8 {[%clk 0:00:32.1]} 46. Kg5
{[%clk 0:00:07.3]} 46... Rb8 {[%clk 0:00:29.2]} 47. e4 {[%clk 0:00:08.4]} 47...
Rbc8 {[%clk 0:00:29.3]} 48. R2d3 {[%clk 0:00:08.2]} 48... Ra8 {[%clk 0:00:28.2]}
49. Rd2 {[%clk 0:00:09.2]} 49... Rab8 {[%clk 0:00:28.8]} 50. Rd1 {[%clk
0:00:09.2]} 50... Rbc8 {[%clk 0:00:29.9]} 51. R1d2 {[%clk 0:00:10.3]} 51... Ra8
{[%clk 0:00:21.5]} 52. Rd1 {[%clk 0:00:11.4]} 52... Rab8 {[%clk 0:00:22.5]} 53.
R1d2 {[%clk 0:00:12.1]} 53... Rbc8 {[%clk 0:00:23.4]} 54. Rd1 {[%clk 0:00:12.9]}
54... Ra8 {[%clk 0:00:24.4]} 55. R1d2 {[%clk 0:00:13.1]} 55... Rab8 {[%clk
0:00:25.5]} 56. Rd1 {[%clk 0:00:14.2]} 56... Rbc8 {[%clk 0:00:26.7]} 57. R1d2
{[%clk 0:00:11.3]} 1/2-1/2